Cogmind - Beta 14 @@@ ROGUE MODE // 2024.08.14 @ 17:32:27 Player: luckinvolved Result: Destroyed by D-53 Grenadier with Mini Grenade Launcher Performance ------------- Evolutions (0) 0 Regions Visited (2) 400 Robots Destroyed (8) 40 Value Destroyed (254) 254 Prototype IDs (1) 20 Alien Tech Used (0) 0 Bonus (0) 0 TOTAL SCORE: 714 Bonus ------- None Cogmind --------- Core Integrity 0/250 Matter 300/300 Energy 100/100 System Corruption 0% Temperature Cool (0) Movement Rolling (130) Ox2 Location -10/Mines Parts ------- > --- POWER (1) -------- (None) > --- PROPULSION (2) --- Compact Wheel > --- UTILITY (2) ------ High-capacity Storage Unit > --- WEAPON (2) ------- (None) > --- INVENTORY (20) --- Cooled Ion Engine Cooled Ion Engine Cooled Ion Engine Light Treads Wheel Heat Sink Heat Sink Visual Processing Unit Visual Processing Unit Sensor Array Signal Interpreter Light Armor Plating Shield Generator Beam Rifle Beam Rifle Beam Rifle Particle Gun Particle Gun Assault Rifle Ripper Peak State ------------ > --- POWER ------------ Cooled Ion Engine > --- PROPULSION ------- Light Treads Light Treads > --- UTILITY ---------- High-capacity Storage Unit Shield Generator > --- WEAPON ----------- Beam Rifle Assault Rifle > --- INVENTORY -------- Ion Engine Cooled Ion Engine Cooled Ion Engine Cooled Ion Engine Wheel Compact Wheel Heat Sink Heat Sink Visual Processing Unit Signal Interpreter Shield Generator Beam Rifle Beam Rifle Beam Rifle Particle Gun Particle Gun Assault Rifle [Rating: 14] Favorites ----------- Power Cooled Ion Engine Engine Cooled Ion Engine Propulsion Light Treads Treads Light Treads Wheel Compact Wheel Utility Shield Generator Device Shield Generator Storage High-capacity Storage Unit Weapon Assault Rifle Energy Gun Beam Rifle Ballistic Gun Assault Rifle Build | -11 -10 -10 ------- Run | Yrd Mat Min Slots Evolved . | . . . Power . | . . . Propulsion . | . . . Utility . | . . . Weapon . | . . . Parts Attached 13 | 7 5 1 Power 2 | 1 1 . Engine 2 | 1 1 . Core . | . . . Reactor . | . . . Propulsion 3 | 2 . 1 Treads 2 | 2 . . Leg . | . . . Wheel 1 | . . 1 Hover . | . . . Flight . | . . . Utility 3 | 1 2 . Device 1 | . 1 . Storage 2 | 1 1 . Processor . | . . . Hackware . | . . . Protection . | . . . Artifact . | . . . Weapon 5 | 3 2 . Energy Gun 3 | 1 2 . Energy Cannon . | . . . Ballistic Gun 2 | 2 . . Ballistic Cannon . | . . . Launcher . | . . . Special Weapon . | . . . Impact Weapon . | . . . Slashing Weapon . | . . . Piercing Weapon . | . . . Special Melee Weapon . | . . . Unidentified Prototypes 1 | . 1 . Parts Lost 5 | . . 5 Power 1 | . . 1 Propulsion 1 | . . 1 Utility 1 | . . 1 Weapon 2 | . . 2 Highest Loss Streak 5 | . . 5 To Critical Strikes . | . . . Average Slot Usage (%) 99 | . 99 98 Engine 13 | . 14 13 Treads 27 | . 28 27 Device 13 | . 13 13 Storage 14 | . 14 14 Energy Gun 13 | . 14 13 Ballistic Gun 13 | . 14 13 Peak Build Rating 14 | 6 14 14 Average Rating 12 | 5 13 13 On Entrance 6 | . 6 14 Naked Turns . | . . . Heaviest Build 55 | 14 55 55 Greatest Support 40 | 40 40 40 Greatest Overweight (x) 3 | 2 1 3 Average Overweight (x) . | . . 1 Largest Inventory Capacity 20 | 8 20 20 Average Capacity 17 | 7 18 20 Most Carried 20 | 6 20 20 Average Carried 13 | 4 13 19 Final Capacity 20 | 8 20 20 Final Carried 20 | 6 20 20 Class Distribution -------------------- 100% | Mutant Dominant Class ---------------- Mutant | -10/Materials Mutant | -10/Mines Resources | -11 -10 -10 ----------- Run | Yrd Mat Min Matter Collected 398 | 270 128 . Remotely . | . . . Salvage Created 306 | . 306 . Parts 20 | . 20 . Haulers Intercepted . | . . . Recyclers Shooed . | . . . Parts Field Recycled . | . . . Retrieved Matter . | . . . Parts Self-Destructed . | . . . Prevented . | . . . Kills | -11 -10 -10 ------- Run | Yrd Mat Min Combat Hostiles Destroyed 5 | . 5 . Guns 5 | . 5 . Classes Destroyed 3 | . 3 . Recycler 1 | . 1 . Watcher 2 | . 2 . Grunt 5 | . 5 . Best Kill Streak 4 | . 4 . Combat Bots Only 2 | . 2 . Max Kills in Single Turn 1 | . 1 . Gunslinging . | . . . Exploded . | . . . Melee . | . . . Uniques/NPCs Destroyed . | . . . Combat | -11 -10 -10 -------- Run | Yrd Mat Min Hostile Shots Fired 42 | . 24 18 Missed 12 | . 10 2 Damage Taken 815 | . 132 683 Core 257 | . . 257 Absorbed by Shields 115 | . 51 64 Core Remaining (%) 100 | 100 . . Volleys Fired 26 | . 26 . Largest 2 | . 2 . Hottest 76 | . 76 . Shots Fired 52 | . 52 . Gun 52 | . 52 . Cannon . | . . . Launcher . | . . . Special . | . . . Kinetic 26 | . 26 . Thermal 24 | . 24 . Explosive . | . . . Electromagnetic 2 | . 2 . Robot Hit Streak 11 | . 11 . Robot Miss Streak 3 | . 3 . Penetration Max . | . . . Secondary Targets 1 | . 1 . Max Gunslinging Chain 1 | . 1 . Shots Hit Robots 30 | . 30 . Core Hits 15 | . 15 . Critical Kills . | . . . Critical Parts Destroyed . | . . . Critical Strikes 2 | . 2 . Burn 2 | . 2 . Melee Attacks . | . . . Impact . | . . . Slashing . | . . . Piercing . | . . . Sneak Attacks . | . . . Combat Hostiles . | . . . Follow-up Attacks . | . . . Damage Inflicted 404 | . 404 . Guns 404 | . 404 . Cannons . | . . . Explosions . | . . . Melee . | . . . Ramming . | . . . Kinetic 195 | . 195 . Thermal 209 | . 209 . Explosive . | . . . Electromagnetic . | . . . Impact . | . . . Slashing . | . . . Piercing . | . . . Highest Corruption . | . . . Average Corruption . | . . . Corruption Purged . | . . . Corruption Blocked . | . . . Overload Shots . | . . . Overflow Damage . | . . . Projectiles . | . . . Explosions . | . . . Melee . | . . . Knockbacks . | . . . Impact . | . . . Kinetic . | . . . Secondary . | . . . Self-Inflicted Damage . | . . . Shots . | . . . Rammed . | . . . Targets Rammed . | . . . Kicked . | . . . Crushed . | . . . Highest Temperature 84 | . 84 . Average Temperature 27 | . 27 . Received Heat Transfer 68 | . 68 . Siege Activations . | . . . Robots Corrupted . | . . . Combat Hostiles . | . . . Parts Fried . | . . . Impact Corruptions . | . . . Robots Melted . | . . . Combat Hostiles . | . . . Parts Melted 2 | . 2 . Heat Transferred 666 | . 666 . Parts Sabotaged . | . . . Parts Stolen . | . . . Parts Stripped . | . . . Power Chain Reactions . | . . . Alert | -11 -10 -10 ------- Run | Yrd Mat Min Peak Influence 96 | . 96 14 Initial 14 | . . 14 Average 30 | . 44 13 Maximum Alert Level . | . . . Low Security (%) 100 | 100 100 100 Level 1 . | . . . Level 2 . | . . . Level 3 . | . . . Level 4 . | . . . Level 5 . | . . . High Security . | . . . Max Security . | . . . Squads Dispatched 1 | . 1 . Investigation 1 | . 1 . Extermination . | . . . Reinforcement . | . . . Assault . | . . . Garrison . | . . . Intercept . | . . . Searches Triggered . | . . . Construction Impeded . | . . . Haulers Reinforced . | . . . Active Scanning Responses . | . . . Cargo Convoy Interrupts . | . . . Stealth | -11 -10 -10 --------- Run | Yrd Mat Min Distress Signals 1 | . 1 . Communications Jammed . | . . . Distress Signals . | . . . Times Spotted 12 | . 10 2 Peak Tracking Total 2 | . 2 2 Tactical Retreats . | . . . Traps | -11 -10 -10 ------- Run | Yrd Mat Min Traps Triggered . | . . . Indirectly . | . . . Trap Hack Attempts . | . . . Triggered . | . . . Disarmed . | . . . Reprogrammed . | . . . Reused . | . . . Traps Extracted . | . . . Installed . | . . . Triggered . | . . . Machines | -11 -10 -10 ---------- Run | Yrd Mat Min Machines Disabled 2 | . 2 . Max in Single Turn 1 | . 1 . Machines Repaired . | . . . Machines Dismantled . | . . . Machines Sabotaged . | . . . Overloaded Fab Kills . | . . . Hacking | -11 -10 -10 --------- Run | Yrd Mat Min Machines Accessed 2 | . 2 . Terminals 2 | . 2 . Fabricators . | . . . Repair Stations . | . . . Recycling Units . | . . . Scanalyzers . | . . . Garrison Access . | . . . Total Hacks 3 | . 3 . Successful 2 | . 2 . Failed 1 | . 1 . Catastrophic 1 | . 1 . Database Lockouts . | . . . Manual 3 | . 3 . Terminals 3 | . 3 . Fabricators . | . . . Repair Stations . | . . . Recycling Units . | . . . Scanalyzers . | . . . Garrison Access . | . . . Terminal Hacks 1 | . 1 . Branch Access Points 1 | . 1 . Fabricator Hacks . | . . . Repair Station Hacks . | . . . Recycling Unit Hacks . | . . . Scanalyzer . | . . . Garrison Access Hacks . | . . . Unauthorized Hacks 1 | . 1 . Terminals 1 | . 1 . Botnet 1 | . 1 . Fabricators . | . . . Repair Stations . | . . . Recycling Units . | . . . Scanalyzers . | . . . Garrison Access . | . . . Data Cores Recovered . | . . . Used . | . . . Hacking Detections 2 | . 2 . Full Trace Events 1 | . 1 . Feedback Events . | . . . Feedback Blocked . | . . . Robot Schematics Acquired . | . . . Robots Built . | . . . Authchips . | . . . Time . | . . . Total Robot Build Rating . | . . . Part Schematics Acquired . | . . . Parts Built . | . . . Authchips . | . . . Time . | . . . Total Part Build Rating . | . . . Parts Repaired . | . . . Time . | . . . Parts Recycled . | . . . Recycled Matter . | . . . Retrieved Matter . | . . . Retrieved Components . | . . . Parts Scanalyzed . | . . . Part Schematics Acquired . | . . . Parts Damaged . | . . . Bothacking | -11 -10 -10 ------------ Run | Yrd Mat Min Used RIF Installer . | . . . Robots Hacked . | . . . Non-combat . | . . . Combat . | . . . Robot Hacks Applied . | . . . Relay Couplers Released . | . . . Fabnet Peak Effective % . | . . . Robots Rewired . | . . . Allies Hacked . | . . . Hacks Repelled . | . . . Allies | -11 -10 -10 -------- Run | Yrd Mat Min Total Allies . | . . . Largest Group . | . . . Highest-Rated Group . | . . . Highest-Rated Ally . | . . . Total Orders . | . . . Ally Attacks . | . . . Total Damage . | . . . Kills . | . . . Allies Corrupted . | . . . Allies Melted . | . . . Intel | -11 -10 -10 ------- Run | Yrd Mat Min Robot Analysis Total . | . . . Derelict Logs Recovered 1 | . . 1 Drone Launches . | . . . Drone Recoveries . | . . . Exploration | -11 -10 -10 ------------- Run | Yrd Mat Min Turns Passed 1487 | 215 904 368 Spaces Moved 619 | 128 332 159 Core 8 | 8 . . Treads 595 | 120 332 143 Legs . | . . . Wheels 16 | . . 16 Hover . | . . . Flight . | . . . Fastest Speed 50 | 50 160 130 Average Speed 213 | 156 228 229 Slowest Speed 240 | 160 240 240 Overloaded Moves . | . . . Propulsion Burnouts . | . . . Robots Hopped . | . . . Cave-ins Triggered . | . . . Exploration Rate (%) 24 | 5 32 37 Regions Visited 2 Branch Regions 1 Pre-discovered Areas 1 | . . 1 Known Exits Taken 1 | . 1 . Unknown Exits Taken 1 | 1 . . Scrap Searched 1 | . . 1 Spaces Dug . | . . . Terrain Destroyed . | . . . Melee . | . . . Projectile . | . . . AOE . | . . . Terrain Rammed . | . . . Walls Destroyed . | . . . Machines Disabled . | . . . Actions | -11 -10 -10 --------- Run | Yrd Mat Min Total 729 | 140 427 162 Wait 44 | . 44 . Move 617 | 127 331 159 Hop . | . . . Pick Up 23 | 5 17 1 Fast Attach 8 | 7 1 . Attach . | . . . Detach 1 | 1 . . Swap 5 | . 4 1 Drop 5 | . 4 1 Fire 26 | . 26 . Melee . | . . . Ram . | . . . Kick . | . . . Crush . | . . . Escape Stasis . | . . . Rewire . | . . . Trap . | . . . Miscellaneous . | . . . Route ------- -11/Scrapyard -10/Materials (discovered 3 exits: [*Mat] / *Min x2) -10/Mines History --------- Turn | Location | Event 8 | -11/Scrapyard | Discovered new exit (range 15) 216 | -11/Scrapyard | Entered Materials 333 | -10/Materials | Build established: Mutant 798 | -10/Materials | Discovered new exit (range 14) 857 | -10/Materials | Discovered new exit (range 16) 1009 | -10/Materials | Identified exit to Mines 1120 | -10/Materials | Entered Mines 1262 | -10/Mines | A weapon hastily lodged in a ceiling crevice suddenly fell to the ground 1442 | -10/Mines | Assembled infested the area 1481 | -10/Mines | Core integrity fell below 50% 1485 | -10/Mines | Core integrity fell below 20% 1488 | -10/Mines | Destroyed by D-53 Grenadier with Mini Grenade Launcher Last Messages --------------- 01466_ D-53 Grenadier unfolds itself. 01466_ K-01 Serf collects debris. 01471_ K-01 Serf destroyed. 01473_ Shield Generator destroyed. 01475_ Beam Rifle destroyed. 01477_ Assault Rifle destroyed. 01477_ Cld. Ion Engine destroyed. 01478_ The unstable cave ceiling collapses. 01479_ K-01 Serf collects debris. 01480_ Lgt. Treads destroyed. 01481_ The unstable cave ceiling collapses. 01482_ U-05 Engineer lays Concrete. 01482_ K-01 Serf collects debris. 01483_ The unstable cave ceiling collapses. 01483_ U-05 Engineer lays Concrete. 01484_ U-05 Engineer destroyed. 01485_ K-01 Serf collects debris. 01486_ The unstable cave ceiling collapses. 01486_ K-01 Serf destroyed. 01487_ The unstable cave ceiling collapses. Map ----- +----------------------------------------------------+ | ??????????????????????????######?????????????????# | | ?????????????????????????## ####??????????????# | | ?????????????????????????# * #####?????????## | | ?????????????????????????# ######???## | | ?????????????????????????# ### #??## | | ?????????????????????????## ##?# #### #?## | | ??????????????????????????# #??# #??????# | | ??????????????????????????# #??# #????## | | ??????????????????????????## #### #### | | ???????????????????????????## | | ????????????????????????????## ## | | ?????????????????????????????######### ## ###### | | ??????????????????????????###????????# ## ##????? | | ?????????????????????????? #????????# #####?????? | | ??????????????????????????# #??????### #??######?# | | ??????????????????????????# #??????# #?## ### | | ?????????????????######???# #??????#=###?# | | ????????????????## ##### #??????#[##### | | ???????????????## #??????#%| | | ???????????????# #### #??????#=###### | | ???????????????# #??# #??????# #????### | | ???????????????## = ##?# #???#### #??????## | | ????????????????#### %* ###u#???# #???????# | | ???????????????????##= #???# ## #???????## | | ??????????????????## ##### ## #????????# | | ??????????????????# @ ## #????????## | | ??????????????????# * ########## #?????????## | | ??????????????????# ! #??????# #??????????## | | ??????????????????# # ##??????# #???????????? | | ?????????????????# #####???# ???????????? | | ?????????????????# ##??? ???????????? | | ?????????????????# # #??? ???????????? | | ?????????????????# #??? ???????????? | | ?????????????????## ##??? ???????????? | | ??????????????????## dd ###??# ???????????? | | ??????????????????# # #??? ???????????? | | ??????????????????# #??? ???????????? | | ??????????????????## #???????????????? | | ???????????????# ### #???????????????? | | ???????????????#"%" ##???????????????? | | ???????????????# " ###### #????????? | | ???????????????########## #????????? | | ????????????????????????# # ####### #????????? | | ????????????????????????# #????????????????? | | ????????????????????????####### #????????????????? | | ???????????????????????????????##????????????????? | | ?????????????????????????????????????????????????? | | ?????????????????????????????????????????????????? | | ?????????????????????????????????????????????????? | | ?????????????????????????????????????????????????? | +----------------------------------------------------+ Best States ------------- Heat Dissipation 25 Energy Generation 14 Energy Capacity 280 Matter Stores 300 Matter Capacity 300 Sight Range 16 Terrain Scan Density 10 Evasion (%) 40 Recoil Reduction 2 Item Schematics ----------------- None Robot Schematics ------------------ None Fabricated ------------ Nothing Alien Tech Used ----------------- None Achievements -------------- None Challenges ------------ None Game ------ Seed PulseMachinePod Manual? 0 Play Time 00:13:04 Cumulative 91.0 hours Start 2024.08.14 @ 17:21:12 End 2024.08.14 @ 17:32:27 Sessions 1 Manual Loads 0 Difficulty Rogue Special Mode None Game No. 136 Rogue 131 Adventurer 5 Explorer 0 Win Type - Total 2 Types 1/0/0/1/0/0/0/0/0 Lore% 29 Gallery% 59 Achievement% 49 Wizard Run 0 Options --------- Layout 0 ASCII 0 Keyboard 0 Movement Mouse Keybinds 0 Fullscreen 1 Font 24/Smallcaps Map View 38x25 Zoom Use 87% Tactical HUD 1 Map Filters NONE Filters NONE Steam 1 RUN: ed5dd26e-7c77-4885-a26c-6a1186b8aeb1